Cogmind - Beta 16 @@@ ROGUE MODE // 2025.12.30 @ 17:53:26 Player: tritri Result: Destroyed by H-55 Commando with Gauss Rifle Performance ------------- Evolutions (3) 1500 Regions Visited (7) 1400 Robots Destroyed (31) 155 Value Destroyed (766) 766 Prototype IDs (23) 460 Alien Tech Used (0) 0 Bonus (985) 985 TOTAL SCORE: 5266 Bonus ------- Entered Garrisons 200 Used RIF Installer 500 Aligned with FarCom 300 Friendly Fire -15 Cogmind --------- Core Integrity 0/700 Matter 36/300 Energy 99/100 System Corruption 5% Temperature Cool (0) Movement Core (50) Location -7/Garrison Parts ------- > --- POWER (1) -------- (None) > --- PROPULSION (4) --- (None) > --- UTILITY (6) ------ (None) > --- WEAPON (2) ------- (None) > --- INVENTORY (5) ---- Flight Unit Flight Unit Light Assault Rifle Rocket Launcher Mining Laser Peak State ------------ > --- POWER ------------ Light Ion Engine > --- PROPULSION ------- Flying Fortress v7 > --- UTILITY ---------- Small Storage Unit Structural Scanner Improved Sensor Array Hacking Suite System Shield > --- WEAPON ----------- Heavy Rocket Launcher Powered Hammer > --- INVENTORY -------- Flight Unit Flight Unit Light Assault Rifle Mining Laser [Rating: 52] Favorites ----------- Power Ion Engine Engine Ion Engine Propulsion Aluminum Leg Leg Aluminum Leg Flight Unit Flying Fortress v7 Utility Small Storage Unit Device Structural Scanner Storage Small Storage Unit Hackware Hacking Suite Weapon Light Assault Rifle Ballistic Gun Light Assault Rifle Launcher Grenade Launcher Special Weapon Mining Laser Impact Weapon Powered Hammer Build | -11 -10 -10 -10 -9 -8 -7 -7 ------- Run | Yrd Mat Min Exi Min Mat Fac Gar Slots Evolved 6 | . . . . . 4 2 . Power . | . . . . . . . . Propulsion 2 | . . . . . 2 . . Utility 4 | . . . . . 2 2 . Weapon . | . . . . . . . . Parts Attached 19 | 6 2 4 . . 5 2 . Power 3 | 1 . 1 . . 1 . . Engine 3 | 1 . 1 . . 1 . . Core . | . . . . . . . . Reactor . | . . . . . . . . Propulsion 4 | 2 . 1 . . 1 . . Treads . | . . . . . . . . Leg 3 | 2 . 1 . . . . . Wheel . | . . . . . . . . Hover . | . . . . . . . . Flight 1 | . . . . . 1 . . Utility 5 | 1 1 . . . 2 1 . Device 2 | . 1 . . . 1 . . Storage 1 | 1 . . . . . . . Processor . | . . . . . . . . Hackware 2 | . . . . . 1 1 . Protection . | . . . . . . . . Artifact . | . . . . . . . . Weapon 7 | 2 1 2 . . 1 1 . Energy Gun . | . . . . . . . . Energy Cannon . | . . . . . . . . Ballistic Gun 3 | 2 . 1 . . . . . Ballistic Cannon . | . . . . . . . . Launcher 2 | . 1 . . . . 1 . Special Weapon 1 | . . 1 . . . . . Impact Weapon 1 | . . . . . 1 . . Slashing Weapon . | . . . . . . . . Piercing Weapon . | . . . . . . . . Special Melee Weapon . | . . . . . . . . Unidentified Prototypes . | . . . . . . . . Parts Lost 6 | . . 1 . . 2 . 3 Power 3 | . . 1 . . 1 . 1 Propulsion 1 | . . . . . . . 1 Utility 1 | . . . . . . . 1 Weapon 1 | . . . . . 1 . . Highest Loss Streak 3 | . . 1 . . 2 . 3 To Critical Strikes 1 | . . . . . . . 1 Average Backups 5 | . 4 8 6 5 3 3 5 Power . | . 1 1 1 1 . . . Propulsion 2 | . 1 4 4 3 2 2 2 Utility . | . . . . . . . . Weapon 1 | . 1 2 1 1 1 1 3 Tool/Special . | . . . . . . . . Unused Backups 5 | . . . 3 . . . 2 Power . | . . . . . . . . Propulsion 5 | . . . 3 . . . 2 Utility . | . . . . . . . . Weapon . | . . . . . . . . Tool/Special . | . . . . . . . . Average Slot Usage (%) 88 | . 95 98 100 100 61 65 52 Engine 11 | . 14 12 14 14 6 7 5 Leg 21 | . 28 28 28 28 . . . Flight 1 | . . . . . 8 7 4 Device 12 | . 9 14 14 14 11 15 11 Storage 12 | . 14 14 14 14 9 7 6 Hackware 2 | . . . . . 7 11 11 Ballistic Gun 13 | . 22 16 14 14 7 . . Launcher 3 | . 5 2 . 5 1 1 5 Special Weapon 6 | . . 9 14 8 5 5 . Impact Weapon 1 | . . . . . 2 7 5 Peak Build Rating 52 | 6 7 7 10 10 46 52 52 Average Rating 15 | 4 6 6 8 10 40 48 35 On Entrance 17 | . 6 7 7 10 10 46 52 Avg Prop Armor Cover (%) . | . . . . . . . . Naked Turns 13 | . . . . . . . 13 Heaviest Build 20 | 11 14 14 13 15 15 20 20 Greatest Support 50 | 20 20 20 20 20 50 50 50 Greatest Overweight (x) 6 | 3 . . . . . . 6 Average Overweight (x) . | . . . . . . . . Largest Inventory Capacity 8 | 8 8 8 8 8 8 8 8 Average Capacity 7 | 7 8 8 8 8 8 8 7 Most Carried 8 | 2 8 8 8 8 8 5 5 Average Carried 6 | . 4 7 7 8 3 3 5 Final Capacity 8 | 8 8 8 8 8 8 8 5 Final Carried 8 | 2 8 8 8 8 3 5 5 Class Distribution -------------------- 85% | Mutant 7% | Hacker-Scout 6% | Scout Dominant Class ---------------- Mutant | -10/Materials Mutant | -10/Mines Mutant | -10/Exiles Mutant | -9/Mines Mutant | -8/Materials Hacker-Scout | -7/Factory Hacker-Scout | -7/Garrison Resources | -11 -10 -10 -10 -9 -8 -7 -7 ----------- Run | Yrd Mat Min Exi Min Mat Fac Gar Matter Collected 612 | 177 194 203 . 10 28 . . Remotely . | . . . . . . . . Salvage Created 769 | . 275 123 . 29 342 . . Parts 56 | . 23 13 . 8 12 . . Haulers Intercepted 1 | . . . . . 1 . . Recyclers Shooed 1 | . . . . . 1 . . Parts Field Recycled . | . . . . . . . . Retrieved Matter . | . . . . . . . . Parts Self-Destructed . | . . . . . . . . Prevented . | . . . . . . . . Parts Restored . | . . . . . . . . Kills | -11 -10 -10 -10 -9 -8 -7 -7 ------- Run | Yrd Mat Min Exi Min Mat Fac Gar Combat Hostiles Destroyed 23 | . 10 5 . 4 4 . . Guns 5 | . 2 3 . . . . . AOE 18 | . 8 2 . 4 4 . . Classes Destroyed 7 | . 5 1 . . 1 . . Worker 2 | . 1 1 . . . . . Builder 1 | . 1 . . . . . . Tunneler 1 | . . 1 . . . . . Hauler 1 | . . . . . 1 . . Recycler 3 | . 1 . . . 2 . . Swarmer 13 | . 6 3 . 4 . . . Grunt 10 | . 4 2 . . 4 . . Best Kill Streak 7 | . 5 6 . 4 7 . . Combat Bots Only 4 | . 3 4 . 4 4 . . Max Kills in Single Turn 4 | . 3 4 . 3 3 . . Gunslinging . | . . . . . . . . Exploded 3 | . 3 2 . 3 2 . . Melee . | . . . . . . . . Uniques/NPCs Destroyed . | . . . . . . . . Combat | -11 -10 -10 -10 -9 -8 -7 -7 -------- Run | Yrd Mat Min Exi Min Mat Fac Gar Hostile Shots Fired 232 | . 7 32 . . 54 . 139 Missed 90 | . 3 8 . . 24 . 55 Hits 142 | . 4 24 . . 30 . 84 Melee 18 | . . . . . . . 18 Projectile 124 | . 4 24 . . 30 . 66 AOE 3 | . . . . . . . 3 Critical Strikes 12 | . . . . . 1 . 11 Damage Taken 2025 | . 100 239 9 . 526 . 1151 Core 787 | . 29 19 5 . 28 . 706 Absorbed by Shields . | . . . . . . . . Core Remaining (%) 90 | 100 . . . 78 94 . . Volleys Fired 79 | . 18 31 . 4 18 2 6 Largest 2 | . 2 2 . 2 1 1 1 Hottest 120 | . 50 120 . 120 100 100 39 Shots Fired 119 | . 30 55 . 8 18 2 6 Gun 68 | . 21 43 . 4 . . . Cannon . | . . . . . . . . Launcher 31 | . 9 1 . 3 12 . 6 Special 20 | . . 11 . 1 6 2 . Kinetic 68 | . 21 43 . 4 . . . Thermal 20 | . . 11 . 1 6 2 . Explosive 31 | . 9 1 . 3 12 . 6 Electromagnetic . | . . . . . . . . Robot Hit Streak 6 | . 6 5 . . 4 . 3 Robot Miss Streak 6 | . 4 6 . . 2 . 1 Penetration Max . | . . . . . . . . Secondary Targets . | . . . . . . . . Shots Hit Robots 39 | . 8 23 . . 5 . 3 Core Hits 60 | . 20 12 . 4 19 . 5 Critical Kills 1 | . . 1 . . . . . Critical Parts Destroyed 1 | . . 1 . . . . . Critical Strikes 2 | . . 2 . . . . . Destroy 2 | . . 2 . . . . . Melee Attacks . | . . . . . . . . Impact . | . . . . . . . . Slashing . | . . . . . . . . Piercing . | . . . . . . . . Sneak Attacks . | . . . . . . . . Combat Hostiles . | . . . . . . . . Follow-up Attacks . | . . . . . . . . Damage Inflicted 1886 | . 511 380 4 205 646 . 140 Guns 352 | . 101 251 . . . . . Cannons . | . . . . . . . . Explosions 1504 | . 407 115 . 205 646 . 131 Melee . | . . . . . . . . Ramming 30 | . 3 14 4 . . . 9 Kinetic 352 | . 101 251 . . . . . Thermal . | . . . . . . . . Explosive 1504 | . 407 115 . 205 646 . 131 Electromagnetic . | . . . . . . . . Impact . | . . . . . . . . Slashing . | . . . . . . . . Piercing . | . . . . . . . . Highest Corruption 5 | . . . 1 1 1 . 5 Average Corruption 1 | . . . 1 1 1 . 5 Corruption Purged . | . . . . . . . . Corruption Blocked . | . . . . . . . . Effects 2 | . . . 1 . . . 1 Message Errors 1 | . . . 1 . . . . Data Loss (minor) 1 | . . . . . . . 1 Overload Shots . | . . . . . . . . Overflow Damage 1 | . . . . . 1 . . Projectiles . | . . . . . . . . Explosions 1 | . . . . . 1 . . Melee . | . . . . . . . . Knockbacks . | . . . . . . . . Impact . | . . . . . . . . Kinetic . | . . . . . . . . Secondary . | . . . . . . . . Self-Inflicted Damage 139 | . 63 . 4 . 22 . 50 Shots 4 | . 2 . . . 1 . 1 Rammed 6 | . . . . . . . 6 Targets Rammed 9 | . 1 2 . . . . 6 Kicked 3 | . 1 2 . . . . . Crushed . | . . . . . . . . Highest Temperature 56 | . 6 54 . 40 56 25 15 Average Temperature 15 | . 4 15 . 15 17 13 9 Received Heat Transfer 435 | . 12 84 . . 261 . 78 Siege Activations . | . . . . . . . . Martial Activations . | . . . . . . . . Shielding Activations . | . . . . . . . . Robots Disrupted . | . . . . . . . . Combat Hostiles . | . . . . . . . . Robots Corrupted . | . . . . . . . . Combat Hostiles . | . . . . . . . . Parts Fried . | . . . . . . . . Impact Corruptions . | . . . . . . . . Robots Melted . | . . . . . . . . Combat Hostiles . | . . . . . . . . Parts Melted . | . . . . . . . . Heat Transferred . | . . . . . . . . Parts Sabotaged . | . . . . . . . . Parts Stolen . | . . . . . . . . Parts Stripped . | . . . . . . . . Power Chain Reactions . | . . . . . . . . Alert | -11 -10 -10 -10 -9 -8 -7 -7 ------- Run | Yrd Mat Min Exi Min Mat Fac Gar Maximum Alert Level 1 | . 1 . . . . . . Low Security (%) 97 | 100 90 100 . 100 100 100 100 Level 1 2 | . 9 . . . . . . Level 2 . | . . . . . . . . Level 3 . | . . . . . . . . Level 4 . | . . . . . . . . Level 5 . | . . . . . . . . High Security . | . . . . . . . . Max Security . | . . . . . . . . Peak Influence 208 | . 208 113 . 110 135 41 96 Initial 74 | . . 74 . . 3 41 2 Average 52 | . 73 51 . 46 53 12 58 Influence Increases 922 | . 335 154 . 111 195 3 124 Destroy 0b10 Robot/C 460 | . 200 100 . 80 80 . . Destroy 0b10 Robot/NC 40 | . 15 10 . . 15 . . Destroy Leader 82 | . 50 10 . 10 12 . . Allied During Kill 5 | . . . . 5 . . . Successful Hack 9 | . . . . . 6 3 . Disable Machine 15 | . . . . . . . 15 Anti-Garrison Action 50 | . . . . . . . 50 Destroy Structure 156 | . 55 4 . 16 52 . 29 Partial Spotted 15 | . . . . . 15 . . Lose Combat Pursuer 90 | . 15 30 . . 15 . 30 Influence Decreases 826 | . 143 346 . 100 114 92 31 Entered New Map 178 | . . 118 . . 8 51 1 Time Decay 587 | . 143 218 . 100 85 41 . Lost Part 60 | . . 10 . . 20 . 30 Lost Ally 1 | . . . . . 1 . . Squads Dispatched 6 | . 4 . . . 2 . . Investigation 4 | . 2 . . . 2 . . Extermination . | . . . . . . . . Reinforcement 2 | . 2 . . . . . . Assault . | . . . . . . . . Garrison . | . . . . . . . . Intercept . | . . . . . . . . Searches Triggered . | . . . . . . . . Construction Impeded . | . . . . . . . . Haulers Reinforced . | . . . . . . . . Active Scanning Responses . | . . . . . . . . Cargo Convoy Interrupts . | . . . . . . . . Stealth | -11 -10 -10 -10 -9 -8 -7 -7 --------- Run | Yrd Mat Min Exi Min Mat Fac Gar Distress Signals 2 | . 1 . . . 1 . . Communications Jammed . | . . . . . . . . Distress Signals . | . . . . . . . . Times Spotted 58 | . 15 10 . 4 17 1 11 Peak Tracking Total 13 | . 4 5 . 4 13 1 11 Tactical Retreats 7 | . 1 4 . . 1 . 1 Traps | -11 -10 -10 -10 -9 -8 -7 -7 ------- Run | Yrd Mat Min Exi Min Mat Fac Gar Traps Triggered 1 | . . . . . . . 1 Indirectly . | . . . . . . . . Trap Hack Attempts . | . . . . . . . . Triggered . | . . . . . . . . Disarmed . | . . . . . . . . Reprogrammed . | . . . . . . . . Reused . | . . . . . . . . Traps Extracted . | . . . . . . . . Installed . | . . . . . . . . Triggered . | . . . . . . . . Machines | -11 -10 -10 -10 -9 -8 -7 -7 ---------- Run | Yrd Mat Min Exi Min Mat Fac Gar Machines Disabled 4 | . . . . . . . 4 Max in Single Turn 3 | . . . . . . . 3 Garrison Relay 1 | . . . . . . . 1 Machines Repaired . | . . . . . . . . Machines Dismantled . | . . . . . . . . Machines Sabotaged . | . . . . . . . . Overloaded Fab Kills . | . . . . . . . . Hacking | -11 -10 -10 -10 -9 -8 -7 -7 --------- Run | Yrd Mat Min Exi Min Mat Fac Gar Machines Accessed 9 | . 2 . 2 . 3 1 1 Terminals 6 | . 2 . . . 3 . 1 Fabricators . | . . . . . . . . Repair Stations . | . . . . . . . . Recycling Units . | . . . . . . . . Scanalyzers . | . . . . . . . . Garrison Access 1 | . . . . . . 1 . Total Hacks 22 | . 5 . 7 . 7 1 2 Successful 14 | . . . 7 . 5 1 1 Failed 8 | . 5 . . . 2 . 1 Catastrophic 2 | . 1 . . . . . 1 Database Lockouts . | . . . . . . . . Manual 3 | . 2 . 1 . . . . Terminals 14 | . 5 . . . 7 . 2 Fabricators . | . . . . . . . . Repair Stations . | . . . . . . . . Recycling Units . | . . . . . . . . Scanalyzers . | . . . . . . . . Garrison Access 1 | . . . . . . 1 . Terminal Hacks 13 | . . . 7 . 5 . 1 Record 6 | . . . 6 . . . . Robot Analysis 2 | . . . . . 2 . . Emergency Access Points 1 | . . . . . 1 . . Dispatch Records 1 | . . . . . 1 . . Zone Layout 1 | . . . . . 1 . . Security Stations 1 | . . . . . . . 1 Proto ID Catalog 1 | . . . 1 . . . . Fabricator Hacks . | . . . . . . . . Repair Station Hacks . | . . . . . . . . Recycling Unit Hacks . | . . . . . . . . Scanalyzer . | . . . . . . . . Garrison Access Hacks 1 | . . . . . . 1 . Unlock Access 1 | . . . . . . 1 . Unauthorized Hacks . | . . . . . . . . Terminals . | . . . . . . . . Fabricators . | . . . . . . . . Repair Stations . | . . . . . . . . Recycling Units . | . . . . . . . . Scanalyzers . | . . . . . . . . Garrison Access . | . . . . . . . . Data Cores Recovered . | . . . . . . . . Used . | . . . . . . . . Hacking Detections 5 | . 2 . . . 2 . 1 Full Trace Events 4 | . 2 . . . 2 . . Feedback Events 1 | . . . . . 1 . . Corruption 1 | . . . . . 1 . . Feedback Blocked . | . . . . . . . . Robot Schematics Acquired . | . . . . . . . . Robots Built . | . . . . . . . . Authchips . | . . . . . . . . Time . | . . . . . . . . Total Robot Build Rating . | . . . . . . . . Part Schematics Acquired . | . . . . . . . . Parts Built . | . . . . . . . . Authchips . | . . . . . . . . Time . | . . . . . . . . Total Part Build Rating . | . . . . . . . . Part Studies Acquired . | . . . . . . . . Parts Repaired . | . . . . . . . . Time . | . . . . . . . . Parts Recycled . | . . . . . . . . Recycled Matter . | . . . . . . . . Retrieved Matter . | . . . . . . . . Retrieved Components . | . . . . . . . . Parts Scanalyzed . | . . . . . . . . Part Schematics Acquired . | . . . . . . . . Parts Damaged . | . . . . . . . . Bothacking | -11 -10 -10 -10 -9 -8 -7 -7 ------------ Run | Yrd Mat Min Exi Min Mat Fac Gar Used RIF Installer 1 | . . . . . . . 1 Robots Hacked . | . . . . . . . . Non-combat . | . . . . . . . . Combat . | . . . . . . . . Robot Hacks Applied . | . . . . . . . . Relay Couplers Released 4 | . . . . . . . 4 Machine Destruction 4 | . . . . . . . 4 Fabnet Peak Effective % . | . . . . . . . . Robots Rewired . | . . . . . . . . Allies Hacked . | . . . . . . . . Hacks Repelled . | . . . . . . . . Allies | -11 -10 -10 -10 -9 -8 -7 -7 -------- Run | Yrd Mat Min Exi Min Mat Fac Gar Total Allies 3 | . . 1 . 2 . . . Largest Group 2 | . . 1 1 2 1 . . Highest-Rated Group 43 | . . 31 31 43 31 . . Highest-Rated Ally 31 | . . 31 31 31 31 . . Total Orders . | . . . . . . . . Ally Attacks 7 | . . . . 2 5 . . Total Damage 106 | . . . . 21 85 . . Kills 1 | . . . . 1 . . . Allies Corrupted . | . . . . . . . . Allies Melted . | . . . . . . . . Intel | -11 -10 -10 -10 -9 -8 -7 -7 ------- Run | Yrd Mat Min Exi Min Mat Fac Gar Active Infowar (turns) 1936 | . 362 475 329 270 254 164 82 Sensors 327 | . . . . . 82 164 81 Structural 1936 | . 362 475 329 270 254 164 82 Robot Analysis Total 2 | . . . . . 2 . . Derelict Logs Recovered 3 | . . 1 . 2 . . . Drone Launches . | . . . . . . . . Drone Recoveries . | . . . . . . . . Exploration | -11 -10 -10 -10 -9 -8 -7 -7 ------------- Run | Yrd Mat Min Exi Min Mat Fac Gar Turns Passed 2174 | 67 508 475 329 270 254 164 107 Spaces Moved 2019 | 48 368 295 271 212 376 299 150 Core 55 | 19 . . . . . . 36 Treads . | . . . . . . . . Legs 1176 | 29 368 295 271 212 1 . . Wheels . | . . . . . . . . Hover . | . . . . . . . . Flight 788 | . . . . . 375 299 114 Fastest Speed 50 | 50 120 120 120 120 50 50 50 Average Speed 92 | 118 120 120 120 120 50 50 59 Slowest Speed 350 | 200 120 120 120 120 120 50 350 Overloaded Moves . | . . . . . . . . Propulsion Burnouts . | . . . . . . . . Robots Hopped 1 | . . . . . 1 . . Potential Cave-ins . | . . . . . . . . Cave-ins Triggered . | . . . . . . . . Exploration Rate (%) 38 | 3 60 61 60 67 29 8 18 Regions Visited 7 Branch Regions 3 Pre-discovered Areas 2 | . . 1 1 . . . . Known Exits Taken 1 | . . . . . . 1 . Unknown Exits Taken 6 | 1 1 1 1 1 1 . . Scrap Searched . | . . . . . . . . Spaces Dug 7 | . . . . 1 6 . . Terrain Destroyed 206 | . 64 4 . 24 57 . 57 Melee . | . . . . . . . . Projectile 7 | . . . . 1 6 . . AOE 199 | . 64 4 . 23 51 . 57 Terrain Rammed 1 | . . . 1 . . . . Walls Destroyed . | . . . . . . . . Machines Disabled . | . . . . . . . . Actions | -11 -10 -10 -10 -9 -8 -7 -7 --------- Run | Yrd Mat Min Exi Min Mat Fac Gar Total 2168 | 55 404 341 276 217 408 305 162 Wait 22 | . 10 4 . . 7 1 . Move 2010 | 47 367 294 270 211 373 298 150 Hop 1 | . . . . . 1 . . Pick Up 12 | 2 6 1 1 . . 2 . Fast Attach 12 | 6 1 1 . . 3 1 . Attach 2 | . . . . . 2 . . Detach . | . . . . . . . . Swap 12 | . 1 6 . 2 2 1 . Drop 8 | . . 2 4 . 2 . . Fire 79 | . 18 31 . 4 18 2 6 Melee . | . . . . . . . . Ram 7 | . . . 1 . . . 6 Kick 3 | . 1 2 . . . . . Crush . | . . . . . . . . Escape Stasis . | . . . . . . . . Rewire . | . . . . . . . . Trap . | . . . . . . . . Miscellaneous . | . . . . . . . . Route ------- -11/Scrapyard -10/Materials (discovered 3 exits: [*Mat] / [*Min] / [Sub]) -10/Mines (discovered 2 exits: *Exi / [*Sub]) -10/Exiles -9/Mines -8/Materials -7/Factory -7/Garrison History --------- Turn | Location | Event 2 | -11/Scrapyard | Met Revision 17 24 | -11/Scrapyard | Discovered new exit (range 15) 68 | -11/Scrapyard | Entered Materials 311 | -10/Materials | Build established: Mutant 435 | -10/Materials | Discovered new exit (range 10) 543 | -10/Materials | Discovered new exit (range 16) 550 | -10/Materials | Discovered new exit (range 16) 576 | -10/Materials | Entered Mines 631 | -10/Mines | Met a Derelict bent on vengeance 659 | -10/Mines | Excavation squad dispatched 659 | -10/Mines | A large section of the Mines collapsed 806 | -10/Mines | Discovered new exit (range 14) 980 | -10/Mines | Learned location of Storage (-8) 1035 | -10/Mines | Escorted by a lone wolf Derelict 1045 | -10/Mines | Deemed a non-threat by the Exiles lab entrance 1045 | -10/Mines | Discovered new exit (range 6) 1051 | -10/Mines | Entered Exiles 1051 | -10/Exiles | Accompanied by 1 ally 1080 | -10/Exiles | Met 8R-AWN 1101 | -10/Exiles | Met EX-HEX 1147 | -10/Exiles | Met EX-DEC 1157 | -10/Exiles | Learned location of Zion (-7) 1187 | -10/Exiles | Met EX-BIN 1201 | -10/Exiles | Aligned with FarCom system 1203 | -10/Exiles | Given EX-Vault access code 1237 | -10/Exiles | Opened EX-Vault 1267 | -10/Exiles | Found Flying Fortress v7 1289 | -10/Exiles | Exiles lab attacked by MAIN.C 1370 | -10/Exiles | Discovered new exit (range 10) 1380 | -10/Exiles | Left Exiles lab with Flying Fortress v7 1380 | -10/Exiles | Entered Mines 1555 | -9/Mines | Assembled infested the area 1625 | -9/Mines | Discovered new exit (range 7) 1635 | -9/Mines | Learned Materials terminal intel 1641 | -9/Mines | Learned Materials security intel 1650 | -9/Mines | Entered Materials 1650 | -8/Materials | Accompanied by 1 ally 1650 | -8/Materials | Evolved 4 slots: Propulsion x2, Utility x2 1652 | -8/Materials | Loaded intel: 12 terminal locations 1655 | -8/Materials | Led the pair of lost Derelicts to an unsafe place 1898 | -8/Materials | Discovered new exit (range 10) 1904 | -8/Materials | Entered Factory 1904 | -7/Factory | Evolved 2 slots: Utility x2 2067 | -7/Factory | Identified exit to Garrison 2068 | -7/Factory | Entered Garrison 2094 | -7/Garrison | Triggered checkpoint 2105 | -7/Garrison | Learned Factory security intel 2157 | -7/Garrison | Installed Relay Interface Framework 2162 | -7/Garrison | Released all parts (1) 2164 | -7/Garrison | Core integrity fell below 50% 2170 | -7/Garrison | Core integrity fell below 20% 2174 | -7/Garrison | Lost 3 parts (1p1n1u) 2175 | -7/Garrison | Destroyed by H-55 Commando with Gauss Rifle Last Messages --------------- 02140_ Slug penetrates Wall. 02141_ Powered Hammer severed. 02143_ Lgt. Ion Engine destroyed. 02143_ Slug penetrates Wall. 02146_ Hvy. Rocket Launcher severed. 02148_ Slug penetrates Wall. 02149_ Imp. Sensor Array severed. 02150_ Structural Scanner severed. 02153_ System Shield severed. 02155_ Slug penetrates Wall. Initiating installation procedure... 02157_ Relay Interface Framework installed. 02157_ Slammed into C-17 Slicer. 02158_ Slug penetrates Wall. 02159_ Slammed into C-17 Slicer. 02162_ Released Sml. Storage Unit. 02163_ Slammed into H-55 Commando. 02163_ Penetrated by Slug. 02175_ System corrupted: Component data lost. 02175_ Penetrated by Slug. Map ----- +----------------------------------------------------+ | ?????????????????????????????????????????????????? | | ?????????????????????????????????????????????????? | | ?????????????????????????????????????????????????? | | ?????????????????????????????????????????????????? | | ?????????????????????????????????????????????????? | | ?????????????????????????????????????????????????? | | ?????????????????????????????????????????????????? | | ?????????????????????????????????????????????????? | | ?????????????????????????????????????????????????? | | ?????????????????????????????????????????????????? | | ?????????????????????????????????????????????????? | | ?????????????????????????????????????????????????? | | ?????????????????????????????????????????????????? | | ?????????????????????????????????????????????????? | | ?????????????????????????????????????????????????? | | ???????????????????????????ssss??????????????????? | | ???????????????????########?"""#####?????????????? | | ??????????????????? ?? ??????????????? | | ???????????????????? ?? ???????????????? | | ????????????????????? ? ????????????????? | | ?????????????????????# #? #??? #????????????? | | ?????????????????????# ## ## #????????????? | | ?????????????????????" "g???????????? | | ????????????????????C" "????????????? | | ?????????????????????" "g???????????? | | ?????????????????????" @ h "g???????????? | | ?????????????????????# ## ## #????????????? | | ???????????########### ## ##????????????????? | | ???????????# cc s ???????????? | | ???????????# c ss ???????????? | | ???????????# ### #### s #????????????? | | ???????????# #?# #??## ##""""## ##????????????? | | ???????????# #?# #???# #?????????#Y????????????? | | ???????????#h #?# #???# #???????????????????????? | | ???????????# #?# #???# #???g???????????????????? | | ???????????#hY#? ???# #???g???????????????????? | | ???????????#/ #? ##???# #???g???????????????????? | | ??##########] ######### #???????????????????????? | | ??# ! ^ #???????????????????????? | | ??# ! ! #???????????????????????? | | ??# ### ### ###+#########???????????????????????? | | ??# ## ## #?? #???????????????????????????????? | | ??# ##" "## #???#???????????????????????????????? | | ??# ##" "## #???????????????????????????????????? | | ??# ##" "## #####???????????????????????????????? | | ??# ##"""## #???????????????????????????????? | | ??# ########### #???????????????????????????????? | | ??# #?????????# #???????????????????????????????? | | ??# #?????????# #???????????????????????????????? | | ### #???#?????# ###?????????????????????????????? | +----------------------------------------------------+ Best States ------------- Heat Dissipation 34 Energy Generation 10 Energy Capacity 250 Matter Stores 300 Matter Capacity 300 Sight Range 16 Robot Scan Range 15 Terrain Scan Density 10 Evasion (%) 60 Offensive Hacking 10 Defensive Hacking 10 Item Schematics ----------------- None Robot Schematics ------------------ None Fabricated ------------ Nothing Repaired ---------- Nothing Studied --------- None Alien Tech Used ----------------- None Achievements -------------- Serviceable Loadout You Again Challenges ------------ None Game ------ Seed GyrokineticTrapDriveblaster Manual? 0 Play Time 00:37:50 Cumulative 3.3 hours Start 2025.12.30 @ 17:15:32 End 2025.12.30 @ 17:53:26 Sessions 1 Manual Loads 0 Difficulty Rogue Special Mode None Game No. 7 Rogue 7 Adventurer 0 Explorer 0 Win Type - Total 0 Types 0/0/0/0/0/0/0/0/0/0 Lore% 6 Gallery% 4 Achievement% 7 Wizard Run 0 Options --------- Layout 1 ASCII 0 Keyboard 1 Movement Vi Keybinds 0 Fullscreen 1 Font 24/Smallcaps Map View 50x35 Zoom Use 0% Tactical HUD 1 Map Filters NONE Filters NONE Steam 1 RUN: c506dfa1-7dcc-4d19-b7ec-2e005495b41d